bitfinex-derivatives/quotes_BNBF0:USTF0_20250603
["timestamp","ask_amount","ask_price","bid_price","bid_amount"]
[1748944821524,0.26080016,667.48,667.11,1.11886835]
[1748944822923,0.26080016,667.48,667.1,1.11886835]
[1748944823926,0.26080016,667.48,667.09,1.11886835]
[1748944824127,0.26080016,667.48,666.78,0.299949]
[1748944824128,0.26080016,667.48,667.07,1.11886835]
[1748944824622,0.26080016,667.48,667.05,1.11886835]
[1748944825022,0.26080016,667.48,666.9,1.48682634]
[1748944825228,1.12342755,667.47,667.01,1.11888334]
[1748944825727,1.12342755,667.45,666.94,1.11888334]
[1748944826022,1.12342755,667.45,666.93,1.11888334]
[1748944826622,1.12342755,667.44,666.92,1.11888334]
[1748944826827,1.12342755,667.46,666.92,1.11888334]
[1748944827328,1.12342755,667.41,666.88,1.11888334]
[1748944827830,1.12342755,667.42,666.87,1.11888334]
[1748944828328,1.12342755,667.42,666.35,0.26087054]
[1748944828329,1.12342755,667.44,666.85,1.11888334]
[1748944828830,1.12342755,667.45,666.84,1.11888334]
[1748944829822,1.12342755,667.46,666.83,1.11888334]
[1748944830429,1.12342755,667.45,666.86,1.11888334]
[1748944830629,1.12342755,667.47,666.87,1.11888334]
[1748944830827,1.38422771,667.48,666.87,1.11888334]
[1748944831728,0.26080016,667.48,666.87,1.11888334]
[1748944832830,0.26080016,667.48,666.91,1.11716572]
[1748944832831,1.12113893,667.45,666.91,1.11716572]
[1748944833037,1.12113893,667.44,666.92,1.11716572]
[1748944833236,1.12113893,667.43,666.93,1.11716572]
[1748944833431,1.12113893,667.45,666.91,1.11716572]
[1748944833834,1.12113893,667.46,666.9,1.11716572]
[1748944834230,1.12113893,667.47,666.89,1.11716572]
[1748944834635,1.12113893,667.45,666.91,1.11716572]
[1748944834836,1.12113893,667.46,666.9,1.11716572]
[1748944835038,1.12113893,667.45,666.91,1.11716572]
[1748944835237,1.12113893,667.45,666.8,1.48682634]
[1748944835238,1.12113893,667.46,666.9,1.11716572]
[1748944835834,0.26080016,667.48,666.87,1.11716572]
[1748944836033,0.26080016,667.48,666.88,1.11716572]
[1748944836236,0.26080016,667.48,666.87,1.11716572]
[1748944836637,0.26080016,667.48,666.86,1.11682199]
[1748944838336,0.26080016,667.48,666.85,1.11682199]
[1748944839337,0.26080016,667.48,666.35,0.26087054]
[1748944839338,0.26080016,667.48,666.83,1.11682199]
[1748944840544,0.26080016,667.48,666.83,1.11651508]
[1748944841145,0.26080016,667.48,666.85,1.11651508]
[1748944841645,0.26080016,667.48,666.84,1.11651508]
[1748944844444,0.26080016,667.48,666.84,1.11632156]
[1748944845345,0.26080016,667.48,666.68,1.48682634]
[1748944845346,0.26080016,667.48,666.83,1.11632156]
[1748944845546,0.26080016,667.48,666.84,1.11632156]
[1748944845846,0.26080016,667.48,666.83,1.11632156]
[1748944846445,0.26080016,667.48,666.84,1.11632156]
[1748944847249,0.26080016,667.48,666.84,1.11612892]
[1748944848343,0.26080016,667.48,666.7,1.48682634]
[1748944848549,0.26080016,667.48,666.84,1.11610503]
[1748944849248,0.26080016,667.48,666.86,1.11610503]
[1748944849653,1.3809759,667.48,666.87,1.11610503]
[1748944850045,1.3809759,667.48,666.86,1.11610503]
[1748944850046,0.26080016,667.48,666.86,1.11610503]
[1748944852351,0.26080016,667.48,666.85,1.11607648]
[1748944854851,0.26080016,667.48,666.86,1.11607648]
[1748944856151,0.26080016,667.48,666.73,1.48682634]
[1748944856351,0.26080016,667.48,666.86,1.11613257]
[1748944858459,0.26080016,667.48,666.84,1.11613257]
[1748944859956,0.26080016,667.48,666.85,1.11613257]
[1748944861462,0.26080016,667.48,666.86,1.11613257]
[1748944861657,0.26080016,667.48,666.85,1.11613257]
[1748944862062,0.26080016,667.48,666.57,2.22719104]
[1748944862063,0.26080016,667.48,666.86,1.11613257]
[1748944862464,0.26080016,667.48,666.73,1.48682634]
[1748944862665,1.38126506,667.48,666.78,1.11648891]
[1748944862860,1.38126506,667.48,666.77,1.11648891]
[1748944863463,1.1204649,667.47,666.76,1.11648891]
[1748944863861,1.1204649,667.47,666.77,1.11648891]
[1748944864868,1.1204649,667.47,666.76,1.11648891]
[1748944865869,1.1204649,667.46,666.76,1.11648891]
[1748944866171,1.1204649,667.47,666.76,1.11648891]
[1748944866373,0.26080016,667.48,666.6,1.48682634]
[1748944866573,1.12053224,667.46,666.78,1.11665136]
[1748944868670,1.12053224,667.45,666.78,1.11665136]
[1748944869475,1.12053224,667.41,666.78,1.11665136]
[1748944870269,0.26080016,667.48,666.63,1.48682634]
[1748944870470,1.12070714,667.41,666.77,1.1169167]
[1748944872169,1.12070714,667.41,666.78,1.1169167]
[1748944874274,0.26080016,667.48,666.64,1.48682634]
[1748944874470,1.12086559,667.41,666.78,1.11715483]
[1748944874676,0.26080016,667.48,666.78,1.11715483]
[1748944874677,1.12086559,667.4,666.78,1.11715483]
[1748944874876,1.12086559,667.41,666.78,1.11715483]
[1748944875776,1.12086559,667.41,666.64,1.48682634]
[1748944875777,1.12086559,667.4,666.79,1.11715483]
[1748944876078,1.12086559,667.4,666.78,1.11715483]
[1748944876673,1.12086559,667.4,666.79,1.11715483]
[1748944878172,0.26080016,667.48,666.65,1.48682634]
[1748944878375,1.12125595,667.4,666.79,1.11755644]
[1748944878677,1.12125595,667.39,666.79,1.11755644]
[1748944879080,1.12125595,667.37,666.82,1.11755644]
[1748944879380,1.12125595,667.4,666.79,1.11755644]
[1748944879576,1.12125595,667.39,666.79,1.11755644]
[1748944880280,1.12125595,667.38,666.8,1.11755644]
[1748944880481,1.12125595,667.39,666.8,1.11755644]
[1748944880678,1.12125595,667.38,666.81,1.11755644]
[1748944881779,1.12125595,667.37,666.81,1.11755644]
[1748944882775,1.12125595,667.37,666.45,0.47385053]
[1748944882776,1.12125595,667.37,666.82,1.11755644]
[1748944883782,1.12125595,667.37,666.81,1.11755644]
[1748944884483,1.12125595,667.37,666.82,1.11755644]
[1748944884684,1.12125595,667.36,666.82,1.11755644]
[1748944884878,1.12125595,667.37,666.82,1.11755644]
[1748944885379,1.12244241,667.36,666.81,1.11878858]
[1748944885582,1.12244241,667.34,666.79,1.11878858]
[1748944885980,1.122489,667.34,666.79,1.11889311]
[1748944886377,1.122489,667.33,666.78,1.11889311]
[1748944887083,1.122489,667.34,666.78,1.11889311]
[1748944888982,1.122489,667.34,666.77,1.11889311]
[1748944889185,1.122489,667.32,666.79,1.11889311]
[1748944889787,1.12220884,667.32,666.79,1.11863494]
[1748944891984,1.12220884,667.33,666.79,1.11863494]
[1748944892386,1.12220884,667.33,666.66,1.48682634]
[1748944892387,1.12220884,667.33,666.8,1.11863494]
[1748944893493,1.12220884,667.32,666.83,1.11863494]
[1748944893686,1.12203477,667.32,666.82,1.11840653]
[1748944894385,1.12203477,667.32,666.83,1.11840653]
[1748944894586,1.12203477,667.31,666.83,1.11840653]
[1748944895186,1.12203477,667.32,666.83,1.11840653]
[1748944895387,1.12203477,667.31,666.83,1.11840653]
[1748944895590,1.12203477,667.32,666.83,1.11840653]
[1748944897594,1.49463962,667.43,666.71,1.48682634]
[1748944897798,1.12202442,667.32,666.83,1.1183861]
[1748944898797,1.12202442,667.32,666.71,1.48682634]
[1748944898798,1.12202442,667.3,666.82,1.1183861]
[1748944898996,1.12202442,667.32,666.83,1.1183861]
[1748944899395,1.12202442,667.31,666.83,1.1183861]
[1748944900094,1.12202442,667.32,666.83,1.1183861]
[1748944900296,1.12202442,667.31,666.83,1.1183861]
[1748944900499,1.12202442,667.32,666.83,1.1183861]
[1748944900701,1.12202442,667.33,666.82,1.1183861]
[1748944900898,1.12202442,667.33,666.81,1.1183861]
[1748944901401,1.12202442,667.33,666.82,1.1183861]
[1748944901700,1.12205324,667.33,666.81,1.11842067]
[1748944902801,1.12205324,667.33,666.82,1.11842067]
[1748944903403,1.12205324,667.32,666.82,1.11842067]
[1748944903701,1.12205324,667.33,666.82,1.11842067]
[1748944903902,1.12205324,667.32,666.82,1.11842067]
[1748944904097,1.12205324,667.32,666.23,0.47385053]
[1748944904098,1.12205324,667.28,666.7,1.11842067]
[1748944904497,1.12205324,667.28,666.69,1.11842067]
[1748944904802,1.12205324,667.28,666.7,1.11842067]
[1748944905103,1.12205324,667.27,666.68,1.11842067]
[1748944905306,1.49463962,667.42,666.53,1.48682634]
[1748944905497,1.12217465,667.27,666.68,1.11888218]
[1748944906303,1.12217465,667.28,666.68,1.11888218]
[1748944907303,1.49463962,667.43,666.52,1.48682634]
[1748944907506,1.12183881,667.28,666.67,1.11853424]
[1748944909306,0.26080016,667.48,666.66,1.11840968]
[1748944909307,1.12170525,667.29,666.66,1.11840968]
[1748944909810,1.12170525,667.28,666.67,1.11840968]
[1748944910104,1.12170525,667.29,666.67,1.11840968]
[1748944910309,1.12170525,667.29,666.66,1.11840968]
[1748944911107,1.12170525,667.29,666.67,1.11840968]
[1748944911308,1.12170525,667.28,666.66,1.11840968]
[1748944911504,1.12170525,667.29,666.66,1.11840968]
[1748944911709,1.12170525,667.29,666.67,1.11840968]
[1748944912409,1.12170525,667.29,666.51,1.48682634]
[1748944912410,1.12170525,667.29,666.66,1.11840968]
[1748944914010,0.26080016,667.48,666.7,1.11840968]
[1748944914011,1.12170525,667.25,666.7,1.11840968]
[1748944914211,1.12170525,667.26,666.69,1.11840968]
[1748944914408,1.12170525,667.25,666.7,1.11840968]
[1748944914813,1.12170525,667.24,666.7,1.11840968]
[1748944915011,1.12170525,667.23,666.71,1.11840968]
[1748944915215,1.12170525,667.23,666.69,1.11840968]
[1748944917316,1.12161199,667.23,666.69,1.11836137]
[1748944918416,1.12161199,667.24,666.69,1.11836137]
[1748944918614,1.12161199,667.23,666.69,1.11836137]
[1748944920514,1.12161199,667.23,666.7,1.11836137]
[1748944920712,1.12166239,667.23,666.7,1.11839392]
[1748944921513,1.12166239,667.22,666.7,1.11839392]
[1748944921715,1.12166239,667.23,666.7,1.11839392]
[1748944923219,1.12166239,667.24,666.7,1.11839392]
[1748944923419,1.12166239,667.24,666.01,0.47385053]
[1748944923420,1.12166239,667.24,666.69,1.11839392]
[1748944923720,1.12175082,667.25,666.7,1.11873563]
[1748944924222,0.26080016,667.48,666.67,1.11873563]
[1748944924223,1.12175082,667.27,666.67,1.11873563]
[1748944925021,1.12175082,667.27,666.68,1.11873563]
[1748944925619,1.12175082,667.31,666.64,1.11873563]
[1748944925820,1.12175082,667.31,666.63,1.11873563]
[1748944926521,1.12175082,667.31,666.62,1.11873563]
[1748944926722,1.12175082,667.33,666.6,1.11873563]
[1748944926923,1.12175082,667.33,666.61,1.11873563]
[1748944927424,1.12176995,667.33,666.61,1.11840221]
[1748944929725,1.12176995,667.34,666.61,1.11840221]
[1748944929925,1.12176995,667.33,666.62,1.11840221]
[1748944930822,1.12176995,667.32,666.62,1.11840221]
[1748944931323,1.12178366,667.32,666.62,1.11825775]
[1748944931721,1.12178366,667.32,666.09,0.2609664]
[1748944931722,1.12178366,667.29,666.65,1.11825775]
[1748944932323,1.12178366,667.34,666.58,1.11825775]
[1748944932526,1.12178366,667.32,666.57,1.11825775]
[1748944932724,1.12178366,667.31,666.56,1.11825775]
[1748944933124,1.12178366,667.31,666.55,1.11825775]
[1748944933529,1.12178366,667.29,666.57,1.11825775]
[1748944934232,1.12178366,667.29,666.56,1.11825775]
[1748944935228,1.1218093,667.29,666.56,1.11842694]
[1748944938632,1.1218093,667.27,666.53,1.11842694]
[1748944939127,1.49463962,667.47,666.33,1.48682634]
[1748944939330,1.49463962,667.47,666.52,1.11844126]
[1748944939331,1.12178725,667.27,666.52,1.11844126]
[1748944939526,1.12178725,667.27,666.12,2.22719104]
[1748944939527,1.12178725,667.27,666.51,1.11844126]
[1748944941031,1.12178725,667.23,666.55,1.11844126]
[1748944942131,1.12178725,667.21,666.57,1.11844126]
[1748944942435,1.12178725,667.21,666.58,1.11844126]
[1748944942631,1.12178725,667.2,666.59,1.11844126]
[1748944942830,1.12178725,667.25,666.54,1.11844126]
[1748944943133,1.1216723,667.24,666.52,1.11828162]
[1748944943933,1.1216723,667.23,666.51,1.11828162]
[1748944944631,1.12164044,667.23,666.51,1.11840314]
[1748944945535,1.12164044,667.22,666.51,1.11840314]
[1748944946431,1.12164044,667.21,666.51,1.11840314]
[1748944946635,1.12164044,667.21,666.52,1.11840314]
[1748944946830,0.26080016,667.48,666.16,2.22719104]
[1748944947035,1.1215595,667.21,666.52,1.11836503]
[1748944947237,1.1215595,667.21,666.51,1.11836503]
[1748944948236,1.1215595,667.22,666.51,1.11836503]
[1748944949538,1.1215595,667.21,666.51,1.11836503]
[1748944949837,1.1215595,667.22,666.51,1.11836503]
[1748944950837,1.1214024,667.22,666.51,1.11820703]
[1748944952343,1.1214024,667.15,666.57,1.11820703]
[1748944952837,1.1214024,667.14,666.59,1.11820703]
[1748944954042,1.1214024,667.13,666.59,1.11820703]
[1748944954242,1.1214024,667.16,666.56,1.11820703]
[1748944954639,1.1214024,667.2,666.52,1.11820703]
[1748944954836,1.12145164,667.19,666.51,1.11828194]
[1748944955843,1.12145164,667.18,666.51,1.11828194]
[1748944956637,0.26080016,667.48,665.51,4.1858356]
[1748944956638,1.12145164,667.2,666.53,1.11828194]
[1748944958647,1.1216392,667.2,666.53,1.11843979]
[1748944958841,1.1216392,667.19,666.53,1.11843979]
[1748944959045,0.26080016,667.48,666.51,1.11843979]
[1748944959046,1.1216392,667.18,666.51,1.11843979]
[1748944959642,1.1216392,667.18,666.52,1.11843979]
[1748944960146,1.1216392,667.18,666.51,1.11843979]
[1748944960342,1.1216392,667.17,666.51,1.11843979]
[1748944961541,1.1216392,667.15,666.5,1.11843979]
[1748944962450,1.49541267,667.32,666.33,1.49115337]
[1748944962648,1.1220236,667.15,666.5,1.11895244]
[1748944963144,1.1220236,667.15,666.51,1.11895244]
[1748944964153,1.1220236,667.08,666.53,1.11895244]
[1748944964363,1.1220236,667.08,666.52,1.11895244]
[1748944965352,1.1220236,667.08,666.51,1.11895244]
[1748944965550,1.1220236,667.09,666.51,1.11895244]
[1748944966056,1.1220236,667.08,666.51,1.11895244]
[1748944966253,1.1220236,667.09,666.5,1.11895244]
[1748944966458,1.1220236,667.08,666.5,1.11895244]
[1748944967057,1.1220236,667.09,666.5,1.11895244]
[1748944967558,1.49541267,667.23,666.36,1.49115337]
[1748944967757,1.49541267,667.23,666.5,1.11877965]
[1748944967758,1.12188578,667.09,666.5,1.11877965]
[1748944969158,1.12188578,667.11,666.46,1.11877965]
[1748944969357,1.12188578,667.1,666.44,1.11877965]
[1748944970062,1.12188578,667.09,666.44,1.11877965]
[1748944970362,1.49541267,667.26,666.27,1.49115337]
[1748944970561,1.12169674,667.1,666.44,1.11852879]
[1748944971055,1.12169674,667.09,666.44,1.11852879]
[1748944972262,1.12169674,667.1,666.44,1.11852879]
[1748944973857,1.12169674,667.09,666.44,1.11852879]
[1748944974063,1.12169674,667.1,666.44,1.11852879]
[1748944974256,1.12169674,667.1,666.13,2.23673006]
[1748944974257,1.49541267,667.25,666.29,1.49115337]
[1748944974457,1.12148276,667.1,666.44,1.11824639]
[1748944976362,1.12148276,667.08,666.44,1.11824639]
[1748944976564,1.12148276,667.08,666.46,1.11824639]
[1748944977667,0.2610545,666.93,666.46,1.11824639]
[1748944977868,0.2610545,666.93,666.32,1.49115337]
[1748944978068,0.2610545,666.93,666.46,1.11838537]
[1748944978665,0.2610545,666.93,666.47,1.11838537]
[1748944979166,0.2610545,666.93,666.41,1.11838537]
[1748944979466,0.2610545,666.93,666.4,1.11838537]
[1748944980263,0.2610545,666.93,666.41,1.11838537]
[1748944980768,0.2610545,666.93,666.26,1.49118049]
[1748944980769,0.2610545,666.93,666.4,1.11838537]
[1748944982170,0.2610545,666.93,666.42,1.11838537]
[1748944983069,0.2610545,666.93,666.4,1.11838537]
[1748944984162,0.2610545,666.93,666.35,1.11838537]
[1748944984766,0.2610545,666.93,666.35,1.11868924]
[1748944984966,0.2610545,666.93,666.32,1.11868924]
[1748944985368,0.2610545,666.93,666.33,1.11868924]
[1748944985669,0.2610545,666.93,666.32,1.11868924]
[1748944986370,0.2610545,666.93,666.31,1.11868924]
[1748944987170,0.2610545,666.93,666.32,1.11868924]
[1748944988471,0.2610545,666.93,666.01,2.23673006]
[1748944988666,0.2610545,666.93,666.32,1.11863959]
[1748944989067,0.2610545,666.93,666.31,1.11863959]
[1748944991967,0.2610545,666.93,666.15,1.49151945]
[1748944991968,0.2610545,666.93,666.26,1.11863959]
[1748944992171,0.2610545,666.93,666.25,1.11863959]
[1748944992368,0.2610545,666.93,666.05,1.49151945]
[1748944992568,0.2610545,666.93,666.2,1.11902914]
[1748944993073,0.2610545,666.93,666.19,1.11902914]
[1748944993273,1.38217041,666.93,666.19,1.11902914]
[1748944993667,0.2610545,666.93,666.18,1.11902914]
[1748944994069,0.2610545,666.93,666.19,1.11902914]
[1748944994275,1.38217041,666.93,666.19,1.11902914]
[1748944994671,0.2610545,666.93,666.18,1.11902914]
[1748944995574,0.2610545,666.93,666.17,1.11902914]
[1748944995970,0.2610545,666.93,666.18,1.11902914]
[1748944996172,0.2610545,666.93,666.01,1.49151945]
[1748944996370,0.2610545,666.93,666.18,1.11853388]
[1748944996677,0.2610545,666.93,666.17,1.11853388]
[1748944997173,0.2610545,666.93,666.18,1.11853388]
[1748944997569,0.2610545,666.93,666.01,1.49151945]
[1748944997570,0.2610545,666.93,666.17,1.11853388]
[1748944997774,1.12037998,666.91,666.21,1.11853388]
[1748944998980,1.12037998,666.92,666.21,1.11853388]
[1748944999272,1.12037998,666.92,665.94,2.23673006]
[1748944999273,0.2610545,666.93,666.17,1.11853388]
[1748944999473,0.2610545,666.93,666.16,1.11853388]
[1748944999675,0.2610545,666.93,666.06,1.11853388]
[1748944999676,1.12037998,666.82,666.06,1.11853388]
[1748945000178,1.12037998,666.82,665.63,0.26112403]
[1748945000179,1.1198341,666.78,665.9,1.49151945]
[1748945000478,1.1198341,666.79,665.9,1.49151945]
[1748945000678,1.1198341,666.8,665.89,1.49151945]
[1748945001074,0.2610545,666.93,665.63,0.26112403]
[1748945001075,1.1198341,666.81,665.9,1.49151945]
[1748945001281,1.1198341,666.82,665.89,1.49151945]
[1748945001574,1.1198341,666.82,665.88,1.49151945]
[1748945001778,1.1198341,666.83,665.88,1.49151945]
[1748945001974,1.1198341,666.82,665.88,1.49151945]
[1748945002178,1.1198341,666.82,665.63,0.26112403]
[1748945002179,1.1198341,666.82,665.89,1.49151945]
[1748945002479,1.1198341,666.83,665.9,1.49151945]
[1748945002680,1.1198341,666.84,665.89,1.49151945]
[1748945003575,1.1198341,666.84,665.88,1.49151945]
[1748945003980,1.11873791,666.84,665.88,1.49151945]
[1748945004578,1.11873791,666.85,665.87,1.49151945]
[1748945006581,1.11873791,666.85,665.86,1.49151945]
[1748945007778,0.2610545,666.93,665.86,1.49151945]
[1748945007985,1.11811468,666.86,665.86,1.49151945]
[1748945008184,1.11811468,666.85,665.86,1.49151945]
[1748945008682,1.11811468,666.86,665.85,1.49151945]
[1748945009084,1.11811468,666.86,665.86,1.49151945]
[1748945009284,1.11811468,666.84,665.89,1.49151945]
[1748945010283,1.11811468,666.83,665.9,1.49151945]
[1748945010484,1.11811468,666.84,665.89,1.49151945]
[1748945011084,1.11811468,666.82,665.92,1.49151945]
[1748945011883,1.11779825,666.82,665.92,1.49151945]
[1748945012086,1.11779825,666.81,665.94,1.49151945]
[1748945012585,1.11779825,666.81,665.93,1.49151945]
[1748945013383,1.11779825,666.81,665.92,1.49151945]
[1748945013586,1.11779825,666.81,665.91,1.49151945]
[1748945014580,1.11779825,666.81,665.9,1.49151945]
[1748945015288,1.11779825,666.81,665.91,1.49151945]
[1748945015481,1.11779825,666.81,665.9,1.49151945]
[1748945015883,1.11773075,666.81,665.91,1.49151945]
[1748945016390,1.11773075,666.92,665.83,0.47385053]
[1748945016690,0.2610545,666.93,665.74,1.49151945]
[1748945018389,0.2610545,666.93,665.75,1.49151945]
[1748945018792,0.2610545,666.93,665.74,1.49151945]
[1748945019391,0.2610545,666.93,665.75,1.49151945]
[1748945020291,1.37898358,666.93,665.75,1.49151945]
[1748945020487,0.2610545,666.93,665.75,1.49151945]
[1748945021292,0.2610545,666.93,665.76,1.49151945]
[1748945022189,1.37898358,666.93,665.76,1.49151945]
[1748945022392,0.2610545,666.93,665.55,0.26119165]
[1748945022591,0.2610545,666.93,665.56,0.30049882]
[1748945025890,1.37950523,666.93,665.76,1.48927648]
[1748945026095,1.11845073,666.92,665.75,1.48927648]
[1748945026289,1.11845073,666.86,665.84,1.48927648]
[1748945026689,1.11845073,666.86,665.85,1.48927648]
[1748945027094,1.11845073,666.86,665.84,1.48927648]
[1748945027295,1.11845073,666.86,665.85,1.48927648]
[1748945027996,1.11867636,666.86,665.85,1.48927648]
[1748945028196,1.11867636,666.85,665.84,1.48927648]
[1748945028793,1.11867636,666.82,665.9,1.48927648]
[1748945030000,1.11867636,666.82,665.77,2.23391473]
[1748945030001,1.11867636,666.84,665.86,1.48927648]
[1748945031196,1.11867636,666.84,665.73,0.47647076]
[1748945031197,1.11867636,666.84,666.02,1.1176548]
[1748945031794,1.11867636,666.84,665.87,1.48927648]
[1748945031795,0.2610545,666.93,665.87,1.48927648]
[1748945031998,1.11911002,666.84,666.02,1.11766881]
[1748945032201,1.11911002,666.84,666.03,1.11766881]
[1748945033497,1.11911002,666.83,666.04,1.11766881]
[1748945033703,1.11911002,666.83,666.03,1.11766881]
[1748945034205,1.11911002,666.82,666.04,1.11766881]
[1748945035201,1.11911002,666.81,666.06,1.11766881]
[1748945035802,1.11976218,666.81,666.06,1.11830831]
[1748945036405,1.11976218,666.8,666.07,1.11830831]
[1748945037108,1.11976218,666.8,666.06,1.11830831]
[1748945037313,1.11976218,666.8,666.07,1.11830831]
[1748945038309,1.11976218,666.79,666.08,1.11830831]
[1748945038615,1.11976218,666.78,666.08,1.11830831]
[1748945038916,1.12047628,666.79,666.07,1.11890919]
[1748945039110,1.12047628,666.79,666.06,1.11890919]
[1748945039309,1.12047628,666.81,666.01,1.11890919]
[1748945039811,1.12070284,666.8,666.02,1.11921409]
[1748945040212,1.12070284,666.8,666.01,1.11921409]
[1748945041317,1.12070284,666.81,666.01,1.11921409]
[1748945041817,1.12070284,666.8,666.02,1.11921409]
[1748945042017,1.12070284,666.79,666.02,1.11921409]
[1748945042216,1.12094896,666.79,666.02,1.11948006]
[1748945042614,1.12094896,666.78,666.03,1.11948006]
[1748945042813,1.12094896,666.79,666.03,1.11948006]
[1748945043218,1.12094896,666.78,666.03,1.11948006]
[1748945043416,1.12094896,666.79,666.02,1.11948006]
[1748945043817,1.12094896,666.79,666.03,1.11948006]
[1748945044120,1.12094896,666.77,666.01,1.11948006]
[1748945044520,1.12094896,666.77,666.02,1.11948006]
[1748945045618,1.12094896,666.76,666.02,1.11948006]
[1748945046023,0.2610545,666.93,665.84,1.48927648]
[1748945046321,1.12181337,666.76,666.02,1.1203914]
[1748945046516,1.12181337,666.76,666.03,1.1203914]
[1748945047516,1.12181337,666.75,666.03,1.1203914]
[1748945048425,1.12181337,666.75,666.04,1.1203914]
[1748945048823,1.12181337,666.74,666.04,1.1203914]
[1748945049024,1.12181337,666.73,666.04,1.1203914]
[1748945049225,1.12181337,666.71,666.07,1.1203914]
[1748945049627,1.12181337,666.7,666.08,1.1203914]
[1748945050028,1.49126764,666.85,665.93,1.48927648]
[1748945050222,1.1226158,666.71,666.08,1.12119261]
[1748945050620,1.1226158,666.7,666.08,1.12119261]
[1748945051126,1.1226158,666.71,666.08,1.12119261]
[1748945051320,1.49126764,666.87,666.07,1.12119261]
[1748945051321,1.1226158,666.7,666.07,1.12119261]
[1748945051525,1.1226158,666.69,666.08,1.12119261]
[1748945052222,1.1226158,666.7,666.08,1.12119261]
[1748945052424,1.49126764,666.86,666.07,1.12119261]
[1748945052425,1.1226158,666.69,666.07,1.12119261]
[1748945052622,1.1226158,666.67,666.09,1.12119261]
[1748945053727,1.1226158,666.63,666.05,1.12119261]
[1748945054227,1.12359472,666.63,666.05,1.12234645]
[1748945054428,1.12359472,666.63,666.04,1.12234645]
[1748945054629,1.12359472,666.63,665.59,0.47647076]
[1748945054630,1.12359472,666.63,666.05,1.12234645]
[1748945054826,1.12359472,666.62,666.06,1.12234645]
[1748945055228,2.49795596,666.93,666.05,1.12234645]
[1748945055229,1.12359472,666.63,666.05,1.12234645]
[1748945055731,1.12359472,666.63,666.06,1.12234645]
[1748945056031,1.12359472,666.61,666.06,1.12234645]
[1748945056226,1.12359472,666.62,666.06,1.12234645]
[1748945056425,1.12359472,666.62,665.9,1.48927648]
[1748945056426,1.12359472,666.61,666.05,1.12234645]
[1748945056627,1.12359472,666.62,666.06,1.12234645]
[1748945056828,1.12359472,666.62,666.07,1.12234645]
[1748945057224,1.12359472,666.62,666.06,1.12234645]
[1748945057629,1.12359472,666.61,666.07,1.12234645]
[1748945058027,1.12385199,666.61,666.07,1.12261439]
[1748945058225,1.12385199,666.61,666.06,1.12261439]
[1748945058531,1.12385199,666.6,666.07,1.12261439]
[1748945059233,0.2610545,666.93,666.06,1.12261439]
[1748945059234,1.12385199,666.61,666.06,1.12261439]
[1748945060234,1.12385199,666.62,666.05,1.12261439]
[1748945061734,1.12385199,666.63,666.05,1.12261439]
[1748945061936,1.12370811,666.63,666.05,1.12233415]
[1748945063642,0.2610545,666.93,666.06,1.12233415]
[1748945063643,1.12370811,666.62,666.06,1.12233415]
[1748945065130,1.12370811,666.62,665.76,2.23391473]
[1748945065131,1.12370811,666.61,666.07,1.12233415]
[1748945065335,1.12370811,666.61,666.06,1.12233415]
[1748945065535,1.12370811,666.62,666.06,1.12233415]
[1748945065736,1.49126764,666.76,665.92,1.48927648]
[1748945065935,1.12347757,666.62,666.06,1.12197077]
[1748945069637,1.49126764,666.76,665.92,1.48927648]
[1748945069831,1.12333256,666.62,666.06,1.12182867]
[1748945070038,0.2610545,666.93,666.07,1.12182867]
[1748945070039,1.12333256,666.6,666.07,1.12182867]
[1748945070236,1.12333256,666.61,666.07,1.12182867]
[1748945071337,1.12333256,666.61,666.08,1.12182867]
[1748945071536,1.12333256,666.61,666.07,1.12182867]
[1748945072136,1.12333256,666.61,665.94,1.48927648]
[1748945072137,1.12333256,666.61,666.08,1.12182867]
[1748945072932,1.12333256,666.6,666.08,1.12182867]
[1748945073133,1.12333256,666.61,666.07,1.12182867]
[1748945073333,1.49126764,666.74,666.07,1.12182867]
[1748945073334,1.12333256,666.6,666.07,1.12182867]
[1748945073641,1.12325829,666.6,666.07,1.12176201]
[1748945074239,1.12325829,666.61,666.07,1.12176201]
[1748945074438,1.12325829,666.6,666.07,1.12176201]
[1748945074637,1.12325829,666.6,665.94,1.48927648]
[1748945074638,1.12325829,666.6,666.08,1.12176201]
[1748945075239,1.12325829,666.6,666.07,1.12176201]
[1748945075433,1.12325829,666.59,666.08,1.12176201]
[1748945075635,1.12325829,666.6,666.08,1.12176201]
[1748945076034,1.12325829,666.58,666.06,1.12176201]
[1748945076634,1.12325829,666.6,666.04,1.12176201]
[1748945077443,1.12320537,666.6,666.04,1.1217654]
[1748945078242,2.23690146,666.88,665.56,0.30049882]
[1748945078243,1.12320537,666.62,666.02,1.1217654]
[1748945078443,1.12320537,666.6,665.98,1.1217654]
[1748945078643,1.12320537,666.6,665.99,1.1217654]
[1748945078838,1.12320537,666.59,665.99,1.1217654]
[1748945079248,1.12320537,666.59,665.98,1.1217654]
[1748945079442,1.12320537,666.58,665.96,1.1217654]
[1748945080045,1.12320537,666.55,665.95,1.1217654]
[1748945080844,1.12320537,666.54,665.94,1.1217654]
[1748945081242,1.12320537,666.54,665.95,1.1217654]
[1748945081442,1.12320537,666.54,665.94,1.1217654]
[1748945081643,1.12320537,666.54,665.95,1.1217654]
[1748945082245,1.12320537,666.53,665.96,1.1217654]